bitfinex-derivatives/quotes_BTCF0:USTF0_20250406
["timestamp","ask_amount","ask_price","bid_price","bid_amount"]
[1743929933797,0.10920013,83068.0,83067.0,1.69687834]
[1743929935106,0.00104001,83068.0,83067.0,1.69687834]
[1743929935306,0.0842985,83070.0,83069.0,0.0842993]
[1743929935502,0.0842985,83070.0,83069.0,0.11713954]
[1743929935708,0.15631308,83071.0,83070.0,0.0842983]
[1743929936010,0.24061028,83071.0,83070.0,0.21132238]
[1743929936213,0.24061028,83071.0,83070.0,0.22835918]
[1743929937009,0.15631308,83071.0,83070.0,0.22835918]
[1743929939206,0.24061028,83071.0,83070.0,0.22835918]
[1743929940008,0.0961964,83071.0,83070.0,0.22835918]
[1743929940705,0.1292964,83071.0,83070.0,0.22828491]
[1743929940914,0.1601964,83071.0,83070.0,0.19817447]
[1743929942113,0.1601964,83071.0,83070.0,0.19817488]
[1743929942297,0.1601964,83071.0,83070.0,0.18414841]
[1743929942501,0.0118992,83071.0,83070.0,0.19818095]
[1743929942704,0.0842972,83071.0,83070.0,0.19818095]
[1743929943513,0.0723481,83072.0,83070.0,0.19818095]
[1743929943514,0.1144963,83072.0,83071.0,0.0842972]
[1743929943703,0.1144963,83072.0,83071.0,0.17912871]
[1743929943902,0.14441388,83074.0,83073.0,0.0842952]
[1743929944103,0.22870808,83074.0,83073.0,0.11708671]
[1743929944313,0.22870808,83074.0,83073.0,0.13412351]
[1743929944512,0.22870808,83074.0,83073.0,0.22702351]
[1743929944712,0.0842942,83074.0,83073.0,0.22702351]
[1743929946017,0.0842942,83074.0,83073.0,0.22698164]
[1743929946214,0.09648704,83074.0,83073.0,0.22698164]
[1743929949519,0.12648704,83074.0,83073.0,0.22698164]
[1743929953324,0.12648704,83074.0,83073.0,0.22699443]
[1743929954826,0.12648704,83074.0,83073.0,0.22699169]
[1743929955226,0.12648704,83074.0,83073.0,0.22699282]
[1743929957625,0.12648704,83074.0,83073.0,0.22699907]
[1743929959030,0.12648704,83074.0,83073.0,0.22700487]
[1743929962034,0.27084447,83074.0,83073.0,0.22700487]
[1743929964934,0.63164447,83074.0,83073.0,0.08010967]
[1743929965138,0.66234447,83074.0,83073.0,0.04980967]
[1743929965731,0.51798704,83074.0,83073.0,0.04980967]
[1743929967932,0.51798704,83074.0,83073.0,0.0499281]
[1743929968129,0.51798704,83074.0,83073.0,0.0181168]
[1743929968335,0.51798704,83074.0,83073.0,0.04994614]
[1743929968655,0.15718704,83074.0,83073.0,0.04994614]
[1743929968944,0.51798704,83074.0,83073.0,0.04994614]
[1743929970835,0.69848011,83074.0,83073.0,0.04994614]
[1743929971446,0.69848011,83074.0,83073.0,0.04886614]
[1743929971746,0.69848011,83074.0,83073.0,0.04886116]
[1743929973652,0.69848011,83074.0,83073.0,0.04886037]
[1743929974951,0.51798704,83074.0,83073.0,0.04886037]
[1743929975140,0.51862704,83074.0,83073.0,0.04886037]
[1743929975337,0.51862704,83074.0,83073.0,0.03481608]
[1743929975545,0.51862704,83074.0,83073.0,0.04885741]
[1743929976242,0.51862704,83074.0,83073.0,0.04885748]
[1743929977258,0.51862704,83074.0,83073.0,0.04885196]
[1743929978754,0.15782704,83074.0,83073.0,0.04885196]
[1743929978959,0.51862704,83074.0,83073.0,0.04885196]
[1743929979359,0.57719093,83074.0,83073.0,0.04885196]
[1743929979754,0.57719093,83074.0,83073.0,0.08005196]
[1743929980861,0.57719093,83074.0,83073.0,0.08004998]
[1743929981361,0.57719093,83074.0,83073.0,0.04884998]
[1743929982650,0.57719093,83074.0,83073.0,0.0170368]
[1743929982855,0.57719093,83074.0,83073.0,0.04887111]
[1743929984463,0.57719093,83074.0,83073.0,0.07897111]
[1743929984957,0.62919093,83074.0,83073.0,0.07897111]
[1743929988164,0.62919093,83074.0,83073.0,0.07897691]
[1743929989967,0.62919093,83074.0,83073.0,0.07907294]
[1743929990971,0.62919093,83074.0,83073.0,0.11167294]
[1743929991873,0.62919093,83074.0,83073.0,0.1116951]
[1743929992569,0.62919093,83074.0,83073.0,0.1433951]
[1743929994863,0.59849093,83074.0,83073.0,0.1433951]
[1743929995066,0.56849093,83074.0,83073.0,0.1433951]
[1743929995465,0.51649093,83074.0,83073.0,0.1433951]
[1743929995671,0.56849093,83074.0,83073.0,0.1433951]
[1743929996471,0.78274382,83074.0,83073.0,0.1433951]
[1743930000882,0.78274382,83074.0,83073.0,0.14338731]
[1743930001065,0.56849093,83074.0,83073.0,0.14338731]
[1743930003879,0.51649093,83074.0,83073.0,0.14338731]
[1743930004081,0.56849093,83074.0,83073.0,0.14304042]
[1743930004579,0.56849093,83074.0,83073.0,0.10024043]
[1743930005885,0.56849093,83074.0,83073.0,0.10024695]
[1743930006283,0.59949093,83074.0,83073.0,0.10024695]
[1743930007677,0.59949093,83074.0,83073.0,0.10024618]
[1743930012295,0.59949093,83074.0,83073.0,0.10025045]
[1743930013391,0.59949093,83074.0,83073.0,0.08593046]
[1743930013703,0.59949093,83074.0,83073.0,0.03161364]
[1743930013988,0.0843094,83059.0,83058.0,0.21628204]
[1743930014192,0.1363094,83059.0,83058.0,0.21736204]
[1743930016193,0.1363094,83059.0,83058.0,0.00108]
[1743930018197,0.0843104,83058.0,83057.0,0.0328]
[1743930019400,0.0843104,83058.0,83057.0,0.0959]
[1743930020100,0.0849504,83058.0,83057.0,0.09694]
[1743930022601,0.0849504,83058.0,83057.0,0.0959]
[1743930022796,0.0849504,83058.0,83057.0,0.11362136]
[1743930024392,0.0849504,83058.0,83057.0,0.11258136]
[1743930024690,0.0849504,83058.0,83057.0,0.11362136]
[1743930025695,0.0849504,83058.0,83057.0,0.04948136]
[1743930025904,0.1805504,83058.0,83057.0,0.06689996]
[1743930030804,0.5413504,83058.0,83057.0,0.06689996]
[1743930032104,0.5423504,83058.0,83057.0,0.06689996]
[1743930032504,0.5413504,83058.0,83057.0,0.06689996]
[1743930032701,0.5423504,83058.0,83057.0,0.06689996]
[1743930033298,0.5423504,83058.0,83057.0,0.06678824]
[1743930033505,0.9031504,83058.0,83057.0,0.06678824]
[1743930034907,0.1815504,83058.0,83057.0,0.06678824]
[1743930035100,0.9031504,83058.0,83057.0,0.06678824]
[1743930036104,0.96172502,83058.0,83057.0,0.06678824]
[1743930037803,0.0843175,83051.0,83050.0,0.00018064]
[1743930038008,0.4451175,83051.0,83050.0,0.00018064]
[1743930038205,0.4451175,83051.0,83050.0,0.00026064]
[1743930038411,0.4451175,83051.0,83050.0,0.00018064]
[1743930038611,0.5058175,83051.0,83050.0,0.00018064]
[1743930039109,0.5068175,83051.0,83050.0,0.00018064]
[1743930040602,0.5074575,83051.0,83050.0,0.00018064]
[1743930041214,0.5084575,83051.0,83050.0,0.00018064]
[1743930041812,0.5104575,83051.0,83050.0,0.00018064]
[1743930044311,0.0843196,83049.0,83048.0,8e-05]
[1743930044513,0.0849596,83049.0,83048.0,8e-05]
[1743930045609,0.0859596,83049.0,83048.0,8e-05]
[1743930045802,0.0869596,83049.0,83048.0,8e-05]
[1743930046601,0.1510596,83049.0,83048.0,8e-05]
[1743930046805,0.0843226,83046.0,83045.0,0.0302]
[1743930047012,0.1362826,83046.0,83045.0,0.0302]
[1743930047810,0.2302826,83046.0,83045.0,0.0302]
[1743930048517,0.0843277,83041.0,83040.0,0.06148064]
[1743930048816,0.4451277,83041.0,83040.0,0.06148064]
[1743930049011,0.4970877,83041.0,83040.0,0.06148064]
[1743930049622,0.5278877,83041.0,83040.0,0.06148064]
[1743930049809,0.5278877,83041.0,83040.0,0.07835467]
[1743930050009,0.5355677,83041.0,83040.0,0.07835467]
[1743930051325,0.5355677,83041.0,83040.0,0.07939467]
[1743930052221,0.5355677,83041.0,83040.0,0.11179467]
[1743930053326,0.5355677,83041.0,83040.0,0.11196887]
[1743930055226,0.5355677,83041.0,83040.0,0.11200914]
[1743930060629,0.5355677,83041.0,83040.0,0.11213111]
[1743930061833,0.5355677,83041.0,83040.0,0.1121363]
[1743930062227,0.67992362,83041.0,83040.0,0.1121363]
[1743930062633,0.67992362,83041.0,83040.0,0.21198878]
[1743930062930,0.67992362,83041.0,83040.0,0.21310878]
[1743930064027,0.20399592,83041.0,83040.0,0.21310878]
[1743930064921,0.28832362,83041.0,83040.0,0.21310878]
[1743930066240,0.1439677,83041.0,83040.0,0.21310878]
[1743930069234,0.1439677,83041.0,83040.0,0.21326519]
[1743930070239,0.1439677,83041.0,83040.0,0.19670141]
[1743930071039,0.0920077,83041.0,83040.0,0.19670141]
[1743930071542,0.0920077,83041.0,83040.0,0.21326614]
[1743930076342,0.0920077,83041.0,83040.0,0.21316706]
[1743930077739,0.4528077,83041.0,83040.0,0.03513836]
[1743930077943,0.5177077,83041.0,83040.0,0.03513836]
[1743930081150,0.5490077,83041.0,83040.0,0.03513836]
[1743930081846,0.5490077,83041.0,83040.0,0.03519458]
[1743930082843,0.5490077,83041.0,83040.0,0.11952328]
[1743930083445,0.5174077,83041.0,83040.0,0.21582328]
[1743930083642,0.5174077,83041.0,83040.0,0.21583662]
[1743930084842,0.5174077,83041.0,83040.0,0.13150792]
[1743930085035,0.5174077,83041.0,83040.0,0.18433662]
[1743930085537,0.5174077,83041.0,83040.0,0.18435222]
[1743930085846,0.5174077,83041.0,83040.0,0.10002352]
[1743930086247,0.5174077,83041.0,83040.0,0.09890352]
[1743930086449,0.5174077,83041.0,83040.0,0.18323222]
[1743930086645,0.5174077,83041.0,83040.0,0.18431222]
[1743930086948,0.5174077,83041.0,83040.0,0.15241222]
[1743930087945,0.5174077,83041.0,83040.0,0.03518352]
[1743930088250,0.5174077,83041.0,83040.0,0.11951222]
[1743930088758,0.5693677,83041.0,83040.0,0.11951726]
[1743930089046,0.5693677,83041.0,83040.0,0.10219306]
[1743930089249,0.5693677,83041.0,83040.0,0.03519144]
[1743930089750,0.5693677,83041.0,83040.0,0.03411144]
[1743930090151,0.5693677,83041.0,83040.0,0.03523144]
[1743930091650,0.5693677,83041.0,83040.0,0.01750772]
[1743930091843,0.5693677,83041.0,83040.0,0.01854772]
[1743930092253,0.5693677,83041.0,83040.0,0.01750772]
[1743930097161,0.5693677,83041.0,83040.0,0.01733957]
[1743930099356,0.5693677,83041.0,83040.0,0.10270827]
[1743930101961,0.5693677,83041.0,83040.0,0.16480827]
[1743930102663,0.5693677,83041.0,83040.0,0.1814233]
[1743930104664,0.5693677,83041.0,83040.0,0.1502233]
[1743930105866,0.5693677,83041.0,83040.0,0.13360827]
[1743930108172,0.5693677,83041.0,83040.0,0.01837957]
[1743930108465,0.5693677,83041.0,83040.0,0.01733957]
[1743930111273,0.62795231,83041.0,83040.0,0.01733957]
[1743930111758,0.62795231,83041.0,83040.0,0.01731505]
[1743930114870,0.62795231,83041.0,83040.0,0.01839505]
[1743930115672,0.5693677,83041.0,83040.0,0.01839505]
[1743930119673,0.5693677,83041.0,83040.0,0.08275505]
[1743930120769,0.5693677,83041.0,83040.0,0.08270486]
[1743930120974,0.45174,83041.0,83040.0,0.16703356]
[1743930121164,0.4517,83041.0,83040.0,0.16703356]
[1743930121473,0.4204,83041.0,83040.0,0.16703356]
[1743930122562,0.36848,83041.0,83040.0,0.16703356]
[1743930122762,0.4204,83041.0,83040.0,0.16703356]
[1743930122963,0.4204,83041.0,83040.0,1.64994934]
[1743930123265,0.5040477,83041.0,83040.0,1.66708168]
[1743930123469,0.74335602,83041.0,83040.0,1.66708168]
[1743930125971,0.69143602,83041.0,83040.0,1.66708168]
[1743930127478,0.69143602,83041.0,83040.0,1.66692422]
[1743930127679,0.59665461,83041.0,83040.0,1.66692422]
[1743930127976,0.15152691,83041.0,83040.0,1.66692422]
[1743930128179,0.1362416,83047.0,83046.0,0.0843226]
[1743930128380,0.0843216,83047.0,83046.0,0.10237748]
[1743930129280,0.0893216,83047.0,83046.0,0.10238068]
[1743930129881,0.18072734,83048.0,83047.0,0.0843216]
[1743930130076,0.26504794,83048.0,83047.0,0.10233968]
[1743930130876,0.26504794,83048.0,83047.0,1.60233968]
[1743930131076,0.26804794,83048.0,83047.0,1.60233968]
[1743930131282,0.26804794,83048.0,83047.0,1.60231683]
[1743930131679,0.0873206,83048.0,83047.0,1.60231683]
[1743930136284,0.0873206,83048.0,83047.0,0.10231683]
[1743930137084,0.1186206,83048.0,83047.0,0.10231683]
[1743930140278,0.1491206,83048.0,83047.0,0.10231683]
[1743930140490,0.1491206,83048.0,83047.0,0.01799523]
[1743930140676,0.1491206,83048.0,83047.0,0.10231683]
[1743930140881,0.1491206,83048.0,83047.0,0.01799523]
[1743930141293,0.1491206,83048.0,83047.0,0.10231683]
[1743930141586,0.1491206,83048.0,83047.0,0.01799523]
[1743930141889,0.1491206,83048.0,83047.0,0.01695523]
[1743930142083,0.0421633,83043.0,83040.0,0.08450834]
[1743930142293,0.1808267,83042.0,83041.0,0.01687307]
[1743930142591,0.1808267,83042.0,83041.0,0.01791307]
[1743930142790,0.1808267,83042.0,83041.0,0.10224077]
[1743930143084,0.1808267,83042.0,83041.0,0.01791307]
[1743930143687,0.1838267,83042.0,83041.0,0.01791307]
[1743930143988,0.1838267,83042.0,83041.0,0.10224077]
[1743930145790,0.1838267,83042.0,83041.0,0.10220361]
[1743930147081,0.1528267,83042.0,83041.0,0.13440361]
[1743930147591,0.1528267,83042.0,83041.0,0.13438448]
[1743930148392,0.1528267,83042.0,83041.0,0.16498448]
[1743930149383,0.1528267,83042.0,83041.0,0.16499092]
[1743930150089,0.1528267,83042.0,83041.0,0.13279092]
[1743930150289,0.1528267,83042.0,83041.0,0.10219092]
[1743930150687,0.1528267,83042.0,83041.0,0.01786322]
[1743930150885,0.1528267,83042.0,83041.0,0.01682322]
[1743930151896,0.1528267,83042.0,83041.0,0.01786322]
[1743930152591,0.1528267,83042.0,83041.0,0.10219092]
[1743930153086,0.1528267,83042.0,83041.0,0.10209337]
[1743930153395,0.003,83042.0,83041.0,0.10209337]
[1743930153597,0.3608,83052.0,83048.0,0.0843206]
[1743930153793,0.0313,83051.0,83048.0,0.10216627]
[1743930153985,0.1156181,83051.0,83048.0,1.60320627]
[1743930154290,0.1156181,83051.0,83048.0,1.60208627]
[1743930154492,0.1156181,83051.0,83048.0,1.66618627]
[1743930154797,0.003,83049.0,83048.0,1.66626701]
[1743930157797,0.0319,83054.0,83048.0,1.62410651]
[1743930157999,0.0319,83054.0,83053.0,0.0843155]
[1743930158199,0.1162145,83054.0,83053.0,0.10216191]
[1743930158588,0.1162145,83054.0,83053.0,0.10215054]
[1743930158797,0.1162145,83054.0,83053.0,0.16365054]
[1743930162202,0.1162145,83054.0,83053.0,0.1634993]
[1743930164595,0.1162145,83054.0,83053.0,0.1468555]
[1743930165906,0.1162145,83054.0,83053.0,0.1161555]
[1743930171408,0.1264864,83045.0,83043.0,0.0421623]
[1743930171609,0.1164246,83044.0,83043.0,0.00104]
[1743930171807,0.1494246,83044.0,83043.0,0.00104]
[1743930172112,0.5102246,83044.0,83043.0,0.00104]
[1743930172699,0.5102246,83044.0,83043.0,0.01764684]
[1743930177509,0.5433246,83044.0,83043.0,0.01764684]
[1743930177908,0.5433246,83044.0,83043.0,0.01660684]
[1743930178517,0.5433246,83044.0,83043.0,0.01664975]
[1743930180031,0.5433246,83044.0,83043.0,0.10097545]
[1743930180224,0.5440446,83044.0,83043.0,0.10097545]
[1743930180530,0.5959246,83044.0,83043.0,0.13147545]
[1743930180719,0.5959246,83044.0,83043.0,0.13259545]
[1743930181023,0.03282,83044.0,83043.0,0.13259545]
[1743930181230,0.0526,83044.0,83043.0,0.13259545]
[1743930181416,0.1369246,83044.0,83043.0,0.1159457]
[1743930181622,0.1369246,83044.0,83043.0,0.13262581]
[1743930185528,0.0850446,83044.0,83043.0,0.13262581]
[1743930185735,0.1369246,83044.0,83043.0,0.1159457]
[1743930187235,0.0850446,83044.0,83043.0,0.1159457]
[1743930187435,0.1369246,83044.0,83043.0,0.1159457]
[1743930188027,0.0850446,83044.0,83043.0,0.1159457]
[1743930188228,0.1369246,83044.0,83043.0,0.1159457]
[1743930189129,0.1369246,83044.0,83043.0,0.1492457]
[1743930190328,0.1682246,83044.0,83043.0,0.1492457]
[1743930195242,0.1996246,83044.0,83043.0,0.1492457]
[1743930198441,0.1682246,83044.0,83043.0,0.1492457]
[1743930198642,0.1163446,83044.0,83043.0,0.1492457]
[1743930198844,0.1682246,83044.0,83043.0,0.1492457]
[1743930204152,0.2015246,83044.0,83043.0,0.1492457]
[1743930208661,0.2332246,83044.0,83043.0,0.1492457]
[1743930210959,0.1813446,83044.0,83043.0,0.1492457]
[1743930211261,0.2015246,83044.0,83043.0,0.1492457]
[1743930211462,0.1804949,83046.0,83045.0,0.0843236]
[1743930211755,0.77919681,83086.0,83051.0,0.0843175]
[1743930211756,0.0303,83056.0,83051.0,0.0843175]
[1743930212062,0.08449254,83057.0,83051.0,0.0856375]
[1743930212357,0.03048064,83057.0,83051.0,1.5856375]
[1743930212568,0.0843139,83055.0,83051.0,1.5856375]
[1743930212761,0.0843139,83055.0,83051.0,1.60222525]
[1743930212959,0.0843139,83055.0,83051.0,1.66522525]
[1743930213864,0.0843146,83054.0,83051.0,1.66522525]
[1743930214264,0.07263634,83057.0,83051.0,1.66522525]
[1743930214563,0.0843156,83053.0,83051.0,1.66522525]
[1743930214855,0.0843156,83053.0,83052.0,0.0843165]
[1743930215163,0.115715,83054.0,83053.0,0.0843155]
[1743930215360,0.0314,83054.0,83053.0,0.1497555]
[1743930216262,0.1157145,83054.0,83053.0,0.1497555]
[1743930217162,0.00018064,83057.0,83056.0,0.0843125]
[1743930217353,0.08449204,83057.0,83056.0,0.0855525]
[1743930218963,0.11669204,83057.0,83056.0,0.1184525]
[1743930220066,0.03238064,83057.0,83056.0,0.1184525]
[1743930220362,0.11669204,83057.0,83056.0,0.1184525]
[1743930222368,0.14919204,83057.0,83056.0,0.1184525]
[1743930241169,0.14919204,83057.0,83056.0,0.0855525]
[1743930243275,0.14919204,83057.0,83056.0,0.1157525]
[1743930246578,0.11669204,83057.0,83056.0,0.1157525]
[1743930252579,0.00018064,83057.0,83056.0,0.1157525]
[1743930252970,0.18057775,83064.0,83063.0,0.0843054]
[1743930253282,0.26488205,83064.0,83063.0,0.00124]
[1743930253478,0.1264651,83060.0,83059.0,0.0843085]
[1743930253782,0.1264651,83060.0,83059.0,0.0856685]
[1743930253977,0.1912651,83060.0,83059.0,0.0855885]
[1743930254178,0.2231651,83060.0,83059.0,0.0855885]
[1743930254382,0.2231651,83060.0,83059.0,0.0843085]
[1743930254684,0.2231651,83060.0,83059.0,0.0855485]
[1743930254882,0.2231651,83060.0,83059.0,0.1145085]
[1743930256183,0.2231651,83060.0,83059.0,0.1157485]
[1743930256384,0.2231651,83060.0,83059.0,0.1145085]
[1743930259183,0.2231651,83060.0,83059.0,0.1157485]
[1743930259685,0.2231651,83060.0,83059.0,0.00124]
[1743930259885,0.0843094,83059.0,83058.0,8e-05]
[1743930260188,0.0843165,83052.0,83051.0,0.21512204]
[1743930260382,0.4969565,83052.0,83051.0,0.21636204]
[1743930260984,0.5929565,83052.0,83051.0,0.21636204]
[1743930261890,0.5929565,83052.0,83051.0,0.00124]
[1743930262381,0.50864,83052.0,83041.0,0.0843269]
[1743930262581,0.0843257,83043.0,83042.0,1.78922525]
[1743930263488,0.1791257,83043.0,83042.0,1.78922525]
[1743930265788,0.1791257,83043.0,83042.0,1.50124]
[1743930266795,0.1791257,83043.0,83042.0,1.5855667]
[1743930267485,0.1791257,83043.0,83042.0,1.6165667]
[1743930267486,0.1481257,83043.0,83042.0,1.6165667]
[1743930267792,0.1174257,83043.0,83042.0,1.6480667]
[1743930273798,0.1362057,83043.0,83042.0,1.6480667]
[1743930274788,0.24440289,83043.0,83042.0,1.6480667]
[1743930277602,0.27470289,83043.0,83042.0,1.6480667]
[1743930282599,0.1665057,83043.0,83042.0,1.6480667]
[1743930288303,0.1665057,83043.0,83042.0,1.6796667]
[1743930291412,0.1989057,83043.0,83042.0,1.6796667]
[1743930292504,0.1989057,83043.0,83042.0,0.1796667]
[1743930293405,0.1989057,83043.0,83042.0,0.1165667]
[1743930300315,0.1989057,83043.0,83042.0,0.00124]
[1743930300508,0.0843277,83041.0,83040.0,0.00018064]
[1743930300707,0.4451277,83041.0,83040.0,0.00150064]
[1743930302016,0.4451277,83041.0,83040.0,0.00018064]
[1743930303121,0.4451277,83041.0,83040.0,0.00142064]
[1743930304716,0.4451277,83041.0,83040.0,0.00018064]
[1743930308121,0.5087277,83041.0,83040.0,0.00018064]
[1743930310528,0.5087277,83041.0,83033.0,8e-05]
[1743930310529,0.0843348,83034.0,83033.0,8e-05]
[1743930310830,0.4451348,83034.0,83033.0,8e-05]
[1743930311025,0.0843368,83032.0,83031.0,0.00060218]
[1743930311227,0.0843368,83032.0,83031.0,0.00978217]
[1743930311433,0.0843368,83032.0,83031.0,0.00060218]
[1743930311630,0.1476368,83032.0,83031.0,0.00060218]
[1743930313338,0.5084368,83032.0,83031.0,0.00060218]
[1743930314442,0.5084368,83032.0,83031.0,0.09395274]
[1743930314637,0.5084368,83032.0,83031.0,0.09519274]
[1743930315144,0.5084368,83032.0,83031.0,0.15689274]
[1743930317343,0.5084368,83032.0,83031.0,0.07255494]
[1743930320834,0.5084368,83032.0,83031.0,0.01085494]
[1743930321045,0.084345,83024.0,83021.0,0.0647]
[1743930321337,0.497025,83024.0,83023.0,0.00142064]
[1743930321540,0.497025,83024.0,83023.0,0.00266064]
[1743930321845,0.497025,83024.0,83023.0,0.00142064]
[1743930322042,0.560225,83024.0,83023.0,0.00142064]
[1743930322643,0.560225,83024.0,83023.0,0.00242064]
[1743930323034,0.560225,83024.0,83023.0,0.00342064]
[1743930323740,0.560225,83024.0,83023.0,0.01228513]
[1743930323947,0.70456695,83024.0,83023.0,0.01228513]
[1743930324642,0.70456695,83024.0,83023.0,0.04124513]
[1743930325136,0.70456695,83024.0,83023.0,0.04248513]
[1743930325547,0.71656089,83024.0,83023.0,0.04248513]
[1743930325743,0.71656089,83024.0,83023.0,0.01128513]
[1743930325944,0.71656089,83024.0,83023.0,0.01004513]
[1743930326945,0.35576089,83024.0,83023.0,0.01004513]
[1743930327146,0.71656089,83024.0,83023.0,0.01128513]
[1743930327341,0.71656089,83024.0,83023.0,0.01004513]
[1743930328346,0.57221894,83024.0,83023.0,0.01004513]
[1743930329547,0.21141894,83024.0,83023.0,0.01004513]
[1743930329739,0.57221894,83024.0,83023.0,0.01004513]
[1743930329936,0.57221894,83024.0,83023.0,0.04326513]
[1743930330441,0.0843521,83017.0,83013.0,0.0843559]
[1743930330649,0.4451521,83017.0,83016.0,0.04120335]
[1743930331248,0.4760521,83017.0,83016.0,0.04120335]
[1743930331640,0.4760521,83017.0,83016.0,0.04220335]
[1743930331840,0.4760521,83017.0,83016.0,0.04320335]
[1743930332034,0.4760521,83017.0,83016.0,0.07470335]
[1743930332435,0.4760521,83017.0,83016.0,0.15805645]
[1743930332835,0.4760521,83017.0,83016.0,0.07370335]
[1743930333035,0.4760521,83017.0,83016.0,0.07378335]
[1743930333539,0.4760521,83017.0,83016.0,0.10548335]
[1743930336745,0.4760521,83017.0,83016.0,0.18983645]
[1743930337839,0.4760521,83017.0,83016.0,0.04188335]
[1743930338041,0.5083521,83017.0,83016.0,0.04188335]
[1743930338240,0.5083521,83017.0,83016.0,0.07328335]
[1743930339448,0.5083521,83017.0,83016.0,0.07196335]
[1743930339650,0.5083521,83017.0,83016.0,0.07320335]
[1743930341552,0.5083521,83017.0,83016.0,0.15755645]
[1743930341752,0.5083521,83017.0,83016.0,0.07320335]
[1743930342351,0.5083521,83017.0,83016.0,0.15755645]
[1743930342651,0.4760521,83017.0,83016.0,0.15755645]
[1743930344354,0.4760521,83017.0,83016.0,0.07320335]
[1743930345355,0.4760521,83017.0,83016.0,0.15755645]
[1743930346452,0.4760521,83017.0,83016.0,0.07320335]
[1743930347657,0.1152521,83017.0,83016.0,0.07320335]
[1743930347855,0.4760521,83017.0,83016.0,0.07320335]
[1743930348353,0.4760521,83017.0,83016.0,0.15755645]
[1743930348654,0.1152521,83017.0,83016.0,0.15755645]
[1743930348855,0.4760521,83017.0,83016.0,0.15755645]
[1743930349058,0.25959405,83017.0,83016.0,0.15755645]
[1743930349245,0.62039405,83017.0,83016.0,0.07320335]
[1743930349847,0.62039405,83017.0,83016.0,0.15755645]
[1743930350253,0.25959405,83017.0,83016.0,0.15755645]
[1743930350553,0.62039405,83017.0,83016.0,0.15755645]
[1743930351148,0.62039405,83017.0,83016.0,0.07320335]
[1743930352456,0.62039405,83017.0,83016.0,0.07196335]
[1743930352653,0.5087521,83017.0,83016.0,0.07196335]
[1743930352855,0.5087521,83017.0,83016.0,0.07324335]
[1743930353760,0.5087521,83017.0,83016.0,0.15759645]
[1743930354262,0.5606321,83017.0,83016.0,0.15759645]
[1743930355564,0.5279321,83017.0,83016.0,0.15759645]
[1743930358167,0.1671321,83017.0,83016.0,0.15759645]
[1743930358365,0.5279321,83017.0,83016.0,0.15759645]
[1743930358874,0.5289321,83017.0,83016.0,0.15759645]
[1743930359566,0.1681321,83017.0,83016.0,0.15759645]
[1743930359867,0.5289321,83017.0,83016.0,0.15759645]
[1743930363371,0.4770521,83017.0,83016.0,0.15759645]
[1743930363567,0.5289321,83017.0,83016.0,0.15759645]
[1743930364268,0.1681321,83017.0,83016.0,0.15759645]
[1743930364569,0.5289321,83017.0,83016.0,0.15759645]
[1743930365075,0.1681321,83017.0,83016.0,0.15759645]
[1743930365274,0.5289321,83017.0,83016.0,0.15759645]
[1743930365572,0.1372321,83017.0,83016.0,0.15759645]
[1743930366871,0.1679321,83017.0,83016.0,0.15759645]
[1743930372175,0.1160521,83017.0,83016.0,0.15759645]
[1743930381176,0.1160521,83017.0,83016.0,1.65759645]
[1743930399478,0.1484521,83017.0,83016.0,1.65759645]
[1743930401288,0.1484521,83017.0,83016.0,1.62619645]
[1743930403291,0.1484521,83017.0,83016.0,1.65799645]
[1743930405405,0.27683429,83024.0,83023.0,0.084346]
[1743930405612,0.32867429,83024.0,83023.0,0.085586]
[1743930405796,0.32867429,83024.0,83023.0,0.179546]
[1743930406000,0.32867429,83024.0,83023.0,0.180786]
[1743930406310,0.14817934,83024.0,83023.0,1.680786]
[1743930407014,0.15017934,83024.0,83023.0,1.680786]
[1743930407708,0.15017934,83024.0,83023.0,1.648786]
[1743930407909,0.15017934,83024.0,83023.0,1.615986]
[1743930408608,0.18277934,83024.0,83023.0,1.615986]
[1743930410312,0.18277934,83024.0,83023.0,0.115986]
[1743930412112,0.18277934,83024.0,83023.0,0.147086]
[1743930413108,0.13093934,83024.0,83023.0,0.147086]
[1743930413308,0.18277934,83024.0,83023.0,0.147086]
[1743930416314,0.13093934,83024.0,83023.0,0.147086]
[1743930416514,0.18277934,83024.0,83023.0,0.147086]
[1743930416706,0.13093934,83024.0,83023.0,0.147086]
[1743930420405,0.01399394,83024.0,83023.0,0.147086]
[1743930420603,0.18074744,83029.0,83028.0,0.0843409]
[1743930420809,0.18074744,83029.0,83028.0,0.0855809]
[1743930421111,0.01854483,83029.0,83028.0,1.5855809]
[1743930421311,0.01854483,83029.0,83028.0,1.6483809]
[1743930422218,0.02054483,83029.0,83028.0,1.6483809]
[1743930424118,0.002,83029.0,83028.0,1.6483809]
[1743930428413,0.002,83029.0,83028.0,2.0091809]
[1743930428828,0.04263466,83035.0,83031.0,0.0843378]
[1743930429127,0.04263466,83035.0,83031.0,0.0855778]
[1743930429519,0.04263466,83035.0,83031.0,1.5855778]
[1743930429720,0.04263466,83035.0,83031.0,1.6478778]
[1743930432332,0.08451744,83032.0,83031.0,1.5855778]
[1743930432730,0.44531744,83032.0,83031.0,0.00124]
[1743930433232,0.47601744,83032.0,83031.0,0.00124]
[1743930433735,0.47601744,83032.0,83031.0,0.0855778]
[1743930434322,0.47601744,83032.0,83031.0,0.00124]
[1743930437338,0.0843378,83031.0,83030.0,8e-05]
[1743930437642,0.1154378,83031.0,83030.0,8e-05]
[1743930437839,0.1481378,83031.0,83030.0,8e-05]
[1743930438339,0.1786378,83031.0,83030.0,8e-05]
[1743930439131,0.1786378,83031.0,83030.0,0.00132]
[1743930440234,0.1786378,83031.0,83030.0,8e-05]
[1743930447648,0.5394378,83031.0,83030.0,8e-05]
[1743930447843,0.1786378,83031.0,83030.0,8e-05]
[1743930448247,0.5394378,83031.0,83030.0,8e-05]
[1743930449445,0.5394378,83031.0,83030.0,0.0844189]
[1743930449650,0.5912778,83031.0,83030.0,0.0856589]
[1743930449845,0.5912778,83031.0,83030.0,0.0844189]
[1743930450041,0.5394378,83031.0,83030.0,0.0844189]
[1743930450257,0.5912778,83031.0,83030.0,0.0857389]
[1743930450949,0.5912778,83031.0,83030.0,0.0014]
[1743930451145,0.5912778,83031.0,83030.0,8e-05]
[1743930451351,0.5912778,83031.0,83030.0,0.0844189]
[1743930451543,0.5912778,83031.0,83030.0,0.0856589]
[1743930457046,0.5912778,83031.0,83030.0,0.1177589]
[1743930459652,0.5912778,83031.0,83030.0,0.1502589]
[1743930461450,0.70521865,83031.0,83030.0,0.1502589]
[1743930462950,0.67251865,83031.0,83030.0,0.1502589]
[1743930464152,0.70571865,83031.0,83030.0,0.1502589]
[1743930464857,0.70571865,83031.0,83030.0,0.1501789]
[1743930465158,0.5612778,83031.0,83030.0,0.1501789]
[1743930470956,0.5094378,83031.0,83030.0,0.1501789]
[1743930471161,0.5612378,83031.0,83030.0,0.1501789]
[1743930471561,0.5094378,83031.0,83030.0,0.1501789]
[1743930471861,0.5612378,83031.0,83030.0,0.1501789]
[1743930472958,0.5301378,83031.0,83030.0,0.1180789]
[1743930474259,0.4969378,83031.0,83030.0,0.0855789]